fUST/lending_fUST_20260323
["ID","MTS","AMOUNT","RATE_DAILY","PERIOD"]
[408788944,1774271772638,-160.0,0.00032877,120]
[408788945,1774271772663,-5000.0,0.00032877,120]
[408788946,1774271772688,-1500.0,0.000329,120]
[408788947,1774271772714,-1229.91,0.00032966,60]
[408788948,1774271772738,-150.0,0.00032987,30]
[408788949,1774271772763,-2000.0,0.00033,120]
[408788950,1774271772787,-1000.0,0.00033,30]
[408788951,1774271772811,-1138.5,0.00033,30]
[408788952,1774271772867,-150.0,0.00033,120]
[408788953,1774271772896,-2752.55577038,0.00033,30]
[408788954,1774271772921,-1971.87934838,0.00033,30]
[408788955,1774271772957,-50000.0,0.00033,120]
[408788956,1774271772983,-20000.0,0.00033,60]
[408788957,1774271773008,-71163.83147044,0.00033,120]
[408788958,1774271773032,-15000.0,0.00033,30]
[408788959,1774271773056,-602.73194602,0.00033,120]
[408788960,1774271773081,-221.76033119,0.00033,120]
[408788961,1774271773105,-1109.22243992,0.00033,120]
[408788962,1774271773130,-1019.30904231,0.00033,120]
[408788963,1774271773154,-2669.69267966,0.00033,120]
[408788964,1774271773179,-1474.95933973,0.00033,120]
[408788965,1774271773203,-167.6707706,0.00033,120]
[408788966,1774271773227,-1287.54440048,0.00033,120]
[408788967,1774271773250,-483.40654493,0.00033,120]
[408788968,1774271773274,-565.85123698,0.00033,120]
[408788969,1774271773298,-367.89813676,0.00033,120]
[408788970,1774271773321,-2102.23789948,0.00033,120]
[408788971,1774271773345,-780.55424143,0.00033,30]
[408788972,1774271773369,-558.48825791,0.00033021,120]
[408788973,1774271773394,-1229.91,0.00033066,60]
[408788974,1774271773419,-905.99933233,0.000331,120]
[408788975,1774271773444,-200.0,0.00033136,120]
[408788976,1774271773468,-160.0,0.00033151,120]
[408788977,1774271773492,-1229.91,0.00033166,60]
[408788978,1774271773516,-100389.44772819,0.000332,117]
[408788979,1774271773540,-100389.44772817,0.000332,117]
[408788980,1774271773565,-100389.44772817,0.000332,117]
[408788981,1774271773589,-100389.44772817,0.000332,117]
[408788982,1774271773613,-100389.44772817,0.000332,117]
[408788983,1774271773637,-150.0,0.00033216,120]
[408788984,1774271773660,-1011.25,0.00033231,120]
[408788985,1774271773724,-344.86550586,0.00033261,30]
[408788986,1774271773747,-641.0,0.00033261,30]
[408788987,1774271773770,-715.0,0.00033261,30]
[408788988,1774271773794,-1229.91,0.00033266,60]
[408788989,1774271773817,-156.6,0.000333,120]
[408788990,1774271773839,-298.58,0.000333,120]
[408788991,1774271773864,-1229.91,0.00033366,60]
[408788992,1774271773891,-233.62,0.0003339,30]
[408788993,1774271773915,-160.0,0.00033425,120]
[408788994,1774271773942,-160.0,0.00033425,120]
[408788995,1774271773966,-160.0,0.00033425,120]
[408788996,1774271773990,-1229.91,0.00033466,60]
[408788997,1774271774014,-1229.91,0.00033566,60]
[408788998,1774271774038,-150.0,0.00033608,30]
[408788999,1774271774063,-1229.91,0.00033666,60]
[408789000,1774271774089,-349538.99602011,0.0003369,120]
[408789001,1774271774114,-1011.25,0.00033692,120]
[408789002,1774271774138,-160.0,0.00033699,120]
[408789003,1774271774163,-1229.91,0.00033766,60]
[408789004,1774271774187,-166733.87910704,0.00033788,60]
[408789005,1774271774210,-3586.22782563,0.00033788,60]
[408789006,1774271774234,-164.43,0.000338,120]
[408789007,1774271774257,-313.52,0.000338,120]
[408789008,1774271774281,-1229.91,0.00033866,60]
[408789009,1774271774304,-1500.0,0.000339,120]
[408789010,1774271774329,-1229.91,0.00033966,60]
[408789011,1774271774353,-160.0,0.00033973,120]
[408789012,1774271774378,-160.0,0.00033973,120]
[408789013,1774271774403,-400.0,0.00034,120]
[408789014,1774271774426,-9371.4957296,0.00034,120]
[408789015,1774271774450,-602.73194602,0.00034,120]
[408789016,1774271774474,-221.76033119,0.00034,120]
[408789017,1774271774498,-1109.22243992,0.00034,120]
[408789018,1774271774522,-1019.30904231,0.00034,120]
[408789019,1774271774545,-2669.69267966,0.00034,120]
[408789020,1774271774568,-1474.95933973,0.00034,120]
[408789021,1774271774591,-167.6707706,0.00034,120]
[408789022,1774271774615,-1287.54440048,0.00034,120]
[408789023,1774271774639,-483.40654493,0.00034,120]
[408789024,1774271774665,-565.85123698,0.00034,120]
[408789025,1774271774688,-367.89813676,0.00034,120]
[408789026,1774271774712,-2102.23789948,0.00034,120]
[408789027,1774271774738,-1000.0,0.00034003,30]
[408789028,1774271774766,-492.0,0.00034003,30]
[408789029,1774271774790,-191.42,0.00034007,60]
[408789030,1774271774815,-1229.91,0.00034066,60]
[408789031,1774271774839,-905.99933233,0.000341,120]
[408789032,1774271774863,-191.42,0.00034107,60]
[408789033,1774271774890,-1229.91,0.00034166,60]
[408789034,1774271774916,-1279.62,0.000342,30]
[408789035,1774271774940,-191.43811705,0.00034207,60]
[408789036,1774271774966,-150.0,0.00034216,120]
[408789037,1774271774991,-702.17984988,0.00034246,120]
[408789038,1774271775015,-160.0,0.00034247,120]
[408789039,1774271775041,-9521.27107997,0.00034266,94]
[408789040,1774271775066,-1229.91,0.00034266,60]
[408789041,1774271775089,-151.02,0.0003429,60]
[408789042,1774271775113,-172.66,0.000343,120]
[408789043,1774271775137,-329.2,0.000343,120]
[408789044,1774271775162,-475.0,0.00034322,120]
[408789045,1774271775186,-475.0,0.00034322,120]
[408789046,1774271775210,-475.0,0.00034322,120]
[408789047,1774271775235,-1229.91,0.00034366,60]
[408789048,1774271775260,-151.02,0.0003439,60]
[408789049,1774271775285,-1229.91,0.00034466,60]
[408789050,1774271775308,-151.02,0.0003449,60]
[408789051,1774271775332,-2155.0,0.000345,120]
[408789052,1774271775356,-201.48,0.00034521,120]
[408789053,1774271775379,-160.0,0.00034521,120]
[408789054,1774271775405,-211.31,0.00034521,120]
[408789055,1774271775428,-160.0,0.00034521,120]
[408789056,1774271775453,-1229.91,0.00034566,60]
[408789057,1774271775476,-300776.99170144,0.0003458,36]
[408789058,1774271775500,-151.02,0.0003459,60]
[408789059,1774271775523,-904.74422214,0.00034657,120]
[408789060,1774271775548,-1229.91,0.00034666,60]
[408789061,1774271775572,-151.02,0.0003469,60]
[408789062,1774271775596,-1229.91,0.00034766,60]
[408789063,1774271775619,-181.29,0.000348,120]
[408789064,1774271775642,-345.66,0.000348,120]
[408789065,1774271775668,-1229.91,0.00034866,60]
[408789066,1774271775692,-1500.0,0.000349,120]
[408789067,1774271775718,-1229.91,0.00034966,60]
[408789068,1774271775743,-2000.0,0.00035,120]
[408789069,1774271775880,-1000.0,0.00035,30]
[408789070,1774271775904,-150.0,0.00035,120]
[408789071,1774271775929,-220.96723361,0.00035,30]
[408789072,1774271775953,-50000.0,0.00035,120]
[408789073,1774271775976,-10719.32430568,0.00035,120]
[408789074,1774271776000,-42942.08741331,0.00035,30]
[408789075,1774271796333,-156.0,0.0002763,30]
[408789076,1774271796375,-156.0,0.0002863,30]
[408789077,1774271796405,-156.0,0.0002963,30]
[408789078,1774271796438,-1110.13462107,0.000303,120]
[408789079,1774271796466,-156.0,0.0003063,30]
[408789080,1774271796494,-1110.13462107,0.000312,120]
[408789081,1774271796521,-156.0,0.0003163,30]
[408789082,1774271796549,-156.0,0.0003263,30]
[408789083,1774271796613,-156.0,0.00033261,120]
[408789084,1774271796640,-156.0,0.0003363,30]
[408789085,1774271796666,-156.0,0.00034261,120]
[408789086,1774271796692,-17592.60632327,0.00035,30]
[408789087,1774271796716,-1000.0,0.00035,120]
[408789088,1774271796742,-143268.0,0.00035,120]
[408789089,1774271796766,-20000.0,0.00035,120]
[408789090,1774271796790,-17117.19534306,0.00035,120]
[408789091,1774271796813,-13818.75669906,0.00035,120]
[408789092,1774271796837,-2669.69267966,0.00035,120]
[408789093,1774271796861,-2102.23789948,0.00035,120]
[408789094,1774271796887,-205.0,0.00035,120]
[408789095,1774271796909,-23503.50593268,0.00035,120]
[408789096,1774271796933,-1000.0,0.00035,70]
[408789097,1774271796957,-98499.61147736,0.00035,30]
[408789098,1774271796980,-168.0,0.00035,120]
[408789099,1774271797004,-10569.0,0.00035,30]
[408789100,1774271797029,-587.04731655,0.00035021,120]
[408789101,1774271797053,-1882.026,0.0003504,67]
[408789102,1774271797083,-1229.91,0.00035066,60]
[408789103,1774271797108,-475.0,0.00035067,120]
[408789104,1774271797133,-1229.91,0.00035166,60]
[408789105,1774271797157,-150.0,0.00035216,120]
[408789106,1774271797183,-168.0,0.00035261,120]
[408789107,1774271797208,-156.0,0.00035261,120]
[408789108,1774271797233,-1229.91,0.00035266,60]
[408789109,1774271797260,-1229.91,0.00035366,60]
[408789110,1774271797285,-1229.91,0.00035466,60]
[408789111,1774271797310,-205.0,0.000355,120]
[408789112,1774271797335,-1229.91,0.00035566,60]
[408789113,1774271797359,-1000.0,0.00035616,120]
[408789114,1774271797384,-4754.0,0.00035616,120]
[408789115,1774271797411,-1229.91,0.00035666,60]
[408789116,1774271797440,-1229.91,0.00035766,60]
[408789117,1774271797465,-3950.03528699,0.000358,120]
[408789118,1774271797489,-381.09,0.000358,120]
[408789119,1774271797516,-2313.06964017,0.00035865,97]
[408789120,1774271797542,-1229.91,0.00035866,60]
[408789121,1774271797567,-604.99122411,0.000359,30]
[408789122,1774271797595,-400.0,0.000359,120]
[408789123,1774271797620,-1500.0,0.000359,120]
[408789124,1774271797645,-205.0,0.000359,120]
[408789125,1774271797670,-1229.91,0.00035966,60]
[408789126,1774271797695,-168.0,0.00036,120]
[408789127,1774271797718,-2035.42,0.00036,30]
[408789128,1774271797742,-1000.0,0.00036,30]
[408789129,1774271797765,-150.0,0.00036,120]
[408789130,1774271797789,-150.0,0.00036,120]
[408789131,1774271797813,-1000.0,0.00036,120]
[408789132,1774271797837,-959.0,0.00036,120]
[408789133,1774271797863,-1000.0,0.00036,120]
[408789134,1774271797887,-100000.0,0.00036,30]
[408789135,1774271797912,-232653.32568886,0.00036,120]
[408789136,1774271797938,-1797341.505976,0.00036,120]
[408789137,1774271797962,-2669.69267966,0.00036,120]
[408789138,1774271797987,-2102.23789948,0.00036,120]
[408789139,1774271798012,-1229.91,0.00036066,60]
[408789140,1774271798037,-1007.91,0.000361,120]
[408789141,1774271798061,-304.67,0.000361,120]
[408789142,1774271798087,-452.78,0.000361,120]
[408789143,1774271798113,-451.31,0.000361,120]
[408789144,1774271798139,-1229.91,0.00036166,60]
[408789145,1774271798163,-158.52467976,0.0003618,60]
[408789146,1774271798188,-150.0,0.00036216,120]
[408789147,1774271798213,-156.0,0.00036261,120]
[408789148,1774271798238,-1229.91,0.00036266,60]
[408789149,1774271798264,-1229.91,0.00036366,60]
[408789150,1774271798298,-205.0,0.000364,120]
[408789151,1774271798334,-1229.91,0.00036466,60]
[408789152,1774271798359,-770.479726,0.000365,120]
[408789153,1774271798385,-1229.91,0.00036566,60]
[408789154,1774271798412,-1229.91,0.00036666,60]
[408789155,1774271798438,-1229.91,0.00036766,60]
[408789156,1774271798463,-2878.83944556,0.000368,90]
[408789157,1774271798489,-1229.91,0.00036866,60]
[408789158,1774271798515,-1500.0,0.000369,120]
[408789159,1774271798541,-205.0,0.000369,120]
[408789160,1774271798567,-1229.91,0.00036966,60]
[408789161,1774271798592,-400.0,0.00037,120]
[408789162,1774271798617,-1000.0,0.00037,30]
[408789163,1774271798642,-150.0,0.00037,120]
[408789164,1774271798666,-1281.0,0.00037,120]
[408789165,1774271798692,-4256.5,0.00037,120]
[408789166,1774271798716,-3071.85893246,0.00037,120]
[408789167,1774271798741,-615.6063752,0.00037021,120]
[408789168,1774271798768,-1229.91,0.00037066,60]
[408789169,1774271798793,-2669.69267966,0.000371,120]
[408789170,1774271798818,-2102.23789948,0.000371,120]
[408789171,1774271798844,-1229.91,0.00037166,60]
[408789172,1774271798869,-150.0,0.00037216,120]
[408789173,1774271798900,-156.0,0.00037261,120]
[408789174,1774271798928,-1229.91,0.00037266,60]
[408789175,1774271798954,-3538.71,0.000373,120]
[408789176,1774271798979,-205.0,0.000373,120]
[408789177,1774271799010,-1229.91,0.00037366,60]
[408789178,1774271799040,-1000.0,0.000374,120]
[408789179,1774271799073,-1000.0,0.00037403,30]
[408789180,1774271799103,-791.0,0.00037403,30]
[408789181,1774271799133,-1229.91,0.00037466,60]
[408789182,1774271799158,-2709.42268803,0.000375,120]
[408789183,1774271799184,-150.0,0.000375,112]
[408789184,1774271799211,-9625.32207978,0.00037507,101]
[408789185,1774271799242,-1229.91,0.00037566,60]
[408789186,1774271799271,-1229.91,0.00037666,60]
[408789187,1774271799300,-202.45743568,0.00037689,101]
[408789188,1774271799328,-1229.91,0.00037766,60]
[408789189,1774271799355,-2688.98,0.000378,90]
[408789190,1774271799383,-205.0,0.000378,120]
[408789191,1774271799413,-1229.91,0.00037866,60]
[408789192,1774271799440,-1344.34913047,0.000379,120]
[408789193,1774271799468,-1500.0,0.000379,120]
[408789194,1774271799498,-1229.91,0.00037966,60]
[408789195,1774271799527,-168.0,0.00038,120]
[408789196,1774271799555,-4434.22475067,0.00038,120]
[408789197,1774271799582,-10248.91652672,0.00038,120]
[408789198,1774271799609,-500.0,0.00038,120]
[408789199,1774271799636,-1000.0,0.00038,30]
[408789200,1774271799663,-2500.0,0.00038,30]
[408789201,1774271799693,-284.06960058,0.00038,120]
[408789202,1774271799723,-1229.91,0.00038066,60]
[408789203,1774271799750,-243.73,0.000381,30]
[408789204,1774271799776,-362.22,0.000381,120]
[408789205,1774271799803,-361.05,0.000381,120]
[408789206,1774271799833,-1229.91,0.00038166,60]
[408789207,1774271799861,-250.60041065,0.00038199,60]
[408789208,1774271799888,-2669.69267966,0.000382,120]
[408789209,1774271799915,-2102.23789948,0.000382,120]
[408789210,1774271799942,-205.0,0.000382,120]
[408789211,1774271799967,-150.0,0.00038216,120]
[408789212,1774271799993,-156.0,0.00038261,120]
[408789213,1774271800022,-1229.91,0.00038266,60]
[408789214,1774271800047,-1000.0,0.00038356,120]
[408789215,1774271800073,-151.0,0.00038356,120]
[408789216,1774271800097,-194.372526,0.00038356,120]
[408789217,1774271800261,157.68,0.000333,120]
[408789218,1774271800292,182.54,0.000348,120]
[408789219,1774271800320,165.57,0.000338,120]
[408789220,1774271800349,221.88,0.000368,120]
[408789221,1774271800380,211.31,0.000363,120]
[408789222,1774271800416,173.85,0.000343,120]
[408789223,1774271800453,191.67,0.000353,120]
[408789224,1774271800487,201.25,0.000358,120]
[408789225,1774271800518,244.62,0.000378,120]
[408789226,1774271800564,232.97,0.000373,120]
[408789227,1774271800599,256.85,0.000383,120]
[408789228,1774271800748,283.1,0.000333,120]
[408789229,1774271800778,297.26,0.000338,120]
[408789230,1774271800810,398.36,0.000368,120]
[408789231,1774271800847,312.12,0.000343,120]
[408789232,1774271800879,327.73,0.000348,120]
[408789233,1774271800915,344.12,0.000353,120]
[408789234,1774271800950,361.32,0.000358,120]
[408789235,1774271800985,418.28,0.000373,120]
[408789236,1774271801019,439.19,0.000378,120]
[408789237,1774271801092,379.39,0.000363,120]
[408789238,1774271801128,461.15,0.000383,120]
[408789239,1774271801362,5999.8,0.00035,120]
[408789240,1774271801423,5999.8,0.000364,120]
[408789241,1774271801486,5999.8,0.00037856,120]
[408789266,1774272547154,-2154.43517973,0.00011428,120]
[408789267,1774272560146,-1085.42016384,0.00011428,120]
[408789278,1774272632825,-1074.31782807,0.00011427,2]
[408789279,1774272632838,-2086.14,0.00011427,2]
[408789372,1774272638680,-1839.54217193,0.00011427,2]
[408789373,1774272638691,-1760.14465643,0.00011428,120]
[408789374,1774272638701,-5000.0,0.00011542,2]
[408789375,1774272638711,-582.0,0.00011542,2]
[408789376,1774272638720,-1200.0,0.00011658,2]
[408789377,1774272638730,-300.0,0.00011659,2]
[408789378,1774272638739,-300.0,0.00011659,2]
[408789379,1774272638750,-300.0,0.00011659,2]
[408789380,1774272638760,-300.0,0.00011659,2]
[408789381,1774272638769,-420.0,0.00012803,2]
[408789382,1774272638778,-1000.0,0.00013699,2]
[408789383,1774272638788,-300.0,0.00013972,2]
[408789384,1774272638797,-300.0,0.00013972,2]
[408789385,1774272638806,-300.0,0.00013972,2]
[408789386,1774272638815,-300.0,0.00013972,2]
[408789387,1774272638824,-300.0,0.00013972,2]
[408789388,1774272638834,-300.0,0.00013972,2]
[408789389,1774272638843,-300.0,0.00013972,2]
[408789390,1774272638854,-300.0,0.00013972,2]
[408789391,1774272638863,-300.0,0.00013972,2]
[408789392,1774272638873,-300.0,0.00013972,2]
[408789393,1774272638882,-300.0,0.00013972,2]
[408789394,1774272638892,-300.0,0.00013972,2]
[408789395,1774272638901,-300.0,0.00013972,2]
[408789396,1774272638910,-300.0,0.00013972,2]
[408789397,1774272638920,-294.80691943,0.00013972,2]
[408789398,1774272638936,-5.19308057,0.00013972,2]
[408789399,1774272638945,-150.0,0.00016625,2]
[408789400,1774272638955,-266.48417781,0.0002,7]
[408789401,1774272638964,-2238.37702205,0.0002,2]
[408789418,1774272643534,-3248.00000119,0.00011313,2]
[408789419,1774272643546,-1751.99999881,0.00011313,2]
[408789420,1774272643555,-4992.46012251,0.0002,2]
[408789421,1774272643567,-10002.77232285,0.0002,2]
[408789434,1774272647351,-261456.9581963,0.0002,2]
[408789435,1774272647361,-1036.79,0.0002,2]
[408789436,1774272647370,-4671.06529442,0.000207,2]
[408789437,1774272647379,-172.3441561,0.000208,2]
[408789438,1774272647389,-4671.06529442,0.000209,2]
[408789439,1774272647398,-641.0,0.00020929,2]
[408789440,1774272647407,-2192.0,0.00020929,2]
[408789441,1774272647417,-438.0,0.00020929,2]
[408789442,1774272647429,-183.0,0.00020929,2]
[408789443,1774272647439,-235.535,0.00020929,2]
[408789444,1774272647448,-232.33373548,0.0002093,2]
[408789445,1774272647458,-35798.14267224,0.00021,2]
[408789446,1774272647468,-436.8097805,0.00021099,2]
[408789447,1774272647478,-4671.06529442,0.000211,2]
[408789448,1774272647487,-478274.25031881,0.000211,2]
[408789449,1774272647500,-8503.56492857,0.000211,2]
[408789635,1774273750152,-152.35,7.106e-05,120]
[408789636,1774273750173,-5000.0,7.469e-05,2]
[408789637,1774273750193,-3358.52550965,7.544e-05,2]
[408789638,1774273765889,-5000.0,7.394e-05,2]
[408789639,1774273765908,-504.60851233,7.544e-05,2]
[408789640,1774273765927,-300.0,7.619e-05,2]
[408789641,1774273765946,-5000.0,7.62e-05,2]
[408789642,1774273765964,-1200.0,7.774e-05,2]
[408789643,1774273765983,-202.0,7.853e-05,2]
[408789644,1774273766001,-535.0,8.176e-05,2]
[408789645,1774273766021,-167.256525,8.176e-05,2]
[408789646,1774273766041,-300.0,8.255e-05,2]
[408789647,1774273766062,-300.0,8.255e-05,2]
[408789648,1774273766082,-300.0,8.255e-05,2]
[408789649,1774273766103,-300.0,8.255e-05,2]
[408789650,1774273766124,-300.0,8.255e-05,2]
[408789651,1774273766144,-300.0,8.255e-05,2]
[408789652,1774273766164,-300.0,8.255e-05,2]
[408789653,1774273766184,-300.0,8.255e-05,2]
[408789654,1774273766205,-300.0,8.255e-05,2]
[408789655,1774273766226,-300.0,8.255e-05,2]
[408789656,1774273766246,-300.0,8.255e-05,2]
[408789657,1774273766266,-300.0,8.255e-05,2]
[408789658,1774273766286,-300.0,8.255e-05,2]
[408789659,1774273766306,-300.0,8.255e-05,2]
[408789660,1774273766325,-300.0,8.255e-05,2]
[408789661,1774273766343,-500.0,8.26e-05,2]
[408789662,1774273766366,-420.0,8.381e-05,2]
[408789663,1774273766386,-600.0,8.419e-05,2]
[408789664,1774273766405,-587.0,9.219e-05,2]
[408789665,1774273766429,-720.0,9.261e-05,2]
[408789666,1774273766448,-167.256525,9.539e-05,2]
[408789667,1774273766468,-500.0,0.0001,2]
[408789668,1774273766487,-823.0,0.00010141,2]
[408789669,1774273766507,-864.0,0.00010187,2]
[408789670,1774273766526,-167.256525,0.00010902,2]
[408789671,1774273766545,-1152.0,0.00011155,2]
[408789672,1774273766565,-1000.0,0.00011206,2]
[408789673,1774273766583,-6161.45334389,0.00011309,2]
[408789674,1774273774133,-169.54854691,0.00011309,2]
[408789699,1774273832507,-5000.0,0.00011084,2]
[408789700,1774273832517,-576.0,0.00011084,2]
[408789701,1774273832527,-5000.0,0.00011196,2]
[408789702,1774273832536,-300.0,0.00011308,2]
[408789703,1774273832546,-1268.3078821,0.00011309,2]
[408789704,1774273832555,-300.0,0.00011533,2]
[408789705,1774273832565,-300.0,0.00011533,2]
[408789707,1774273832574,-300.0,0.00011533,2]
[408789709,1774273832583,-300.0,0.00011533,2]
[408789711,1774273832593,-300.0,0.00011533,2]
[408789713,1774273832603,-300.0,0.00011533,2]
[408789715,1774273832613,-300.0,0.00011533,2]
[408789717,1774273832622,-300.0,0.00011533,2]
[408789719,1774273832632,-300.0,0.00011533,2]
[408789721,1774273832641,-300.0,0.00011533,2]
[408789723,1774273832651,-300.0,0.00011533,2]
[408789724,1774273832661,-300.0,0.00011533,2]
[408789725,1774273832671,-300.0,0.00011533,2]
[408789726,1774273832680,-300.0,0.00011533,2]
[408789727,1774273832690,-300.0,0.00011533,2]
[408789728,1774273832700,-600.0,0.00011763,2]
[408789729,1774273832710,-167.256525,0.00012264,2]
[408789730,1774273832720,-420.0,0.00012423,2]
[408789731,1774273832730,-720.0,0.00012939,2]
[408789732,1774273832740,-167.256525,0.00013627,2]
[408789733,1774273832749,-587.0,0.00013647,2]
[408789734,1774273832759,-1000.0,0.00013699,2]
[408789735,1774273832768,-864.0,0.00014233,2]
[408789736,1774273832777,-394.50458116,0.00014646,2]
[408789737,1774273832789,-167.256525,0.0001499,2]
[408789738,1774273832798,-223.35776125,0.00014992,2]
[408789739,1774273832810,-275.752,0.00014992,2]
[408789740,1774273832822,-323.89023875,0.00014992,2]
[408789741,1774273832831,-744.21112653,0.00015656,2]
[408789742,1774273832842,-255.78887347,0.00015656,2]
[408789743,1774273832851,-167.256525,0.00016352,2]
[408789744,1774273832861,-241.3985568,0.00016469,2]
[408789752,1774273838752,-910.6014432,0.00016469,2]
[408789754,1774273838762,-1000.0,0.00016763,2]
[408789755,1774273838771,-1000.0,0.00017222,2]
[408789756,1774273838781,-244.0,0.00017222,2]
[408789757,1774273838790,-1613.0,0.00018092,2]
[408789758,1774273838799,-1000.0,0.00018944,2]
[408789759,1774273838809,-492.0,0.00018944,2]
[408789760,1774273838818,-155.0,0.00019875,2]
[408789761,1774273838827,-1036.79,0.0002,2]
[408789762,1774273838836,-3269.74570609,0.000207,2]
[408789763,1774273838846,-2183.0,0.00020703,2]
[408789764,1774273838855,-1394.0,0.00020703,2]
[408789765,1774273838864,-640.0,0.00020703,2]
[408789766,1774273838874,-438.0,0.00020703,2]
[408789767,1774273838885,-151.217,0.00020703,2]
[408789768,1774273838894,-305.76684635,0.00020799,2]
[408789769,1774273838904,-683.68989037,0.000208,34]
[408789770,1774273838913,-1503.7614563,0.000208,34]
[408789771,1774273838923,-1677.79266083,0.000208,34]
[408789772,1774273838933,-447.55726267,0.000208,34]
[408789773,1774273838942,-275.90918314,0.000208,34]
[408789774,1774273838951,-1000.0,0.00020838,2]
[408789775,1774273838960,-791.0,0.00020838,2]
[408789776,1774273838970,-3269.74570609,0.000209,2]
[408789777,1774273838979,-3269.74570609,0.000211,2]
[408789778,1774273838989,-3269.74570609,0.000213,2]
[408789779,1774273838998,-721.98446942,0.00021483,2]
[408789780,1774273839008,-1302.0,0.000215,2]
[408789781,1774273839017,-3269.74570609,0.000216,2]
[408789782,1774273839027,-3269.74570609,0.000218,2]
[408789783,1774273839036,-500.0,0.00021917,4]
[408789784,1774273839046,-500.0,0.00021917,4]
[408789785,1774273839055,-500.0,0.00021917,4]
[408789786,1774273839064,-3269.74570609,0.00022,2]
[408789787,1774273839074,-500.0,0.00022191,4]
[408789788,1774273839084,-500.0,0.00022191,4]
[408789789,1774273839094,-3269.74570609,0.000222,2]
[408789790,1774273839104,-196.1476245,0.000224,2]
[408789791,1774273839113,-3186.32436259,0.000224,2]
[408789805,1774273841106,-5000.0,0.00016304,2]
[408789806,1774273841116,-83.4213435,0.000224,2]
[408789807,1774273841125,-96.67455832,0.00022415,2]
[408789818,1774273843725,-358.16000328,0.00022415,2]
[408789819,1774273843735,-500.0,0.00022465,4]
[408789820,1774273843745,-500.0,0.00022465,4]
[408789821,1774273843755,-3269.74570609,0.000227,2]
[408789822,1774273843765,-500.0,0.00022729,8]
[408789823,1774273843775,-500.0,0.00022739,4]
[408789824,1774273843784,-500.0,0.00022739,4]
[408789825,1774273843794,-311.40271372,0.00022896,2]
[408789826,1774273843807,-5.68056784,0.00022896,2]
[408789827,1774273843817,-1000.0,0.00022922,10]
[408789828,1774273843827,-1000.0,0.00022922,10]
[408789829,1774273843837,-270.83333333,0.00023,2]
[408789831,1774273843847,-500.0,0.00023013,4]
[408789832,1774273843856,-500.0,0.00023013,4]
[408789833,1774273843866,-197.21,0.00023119,10]
[408789834,1774273843876,-17057.68295279,0.00023129,2]
[408789851,1774273846607,-6727.45224123,0.00023129,2]
[408789852,1774273846619,-23274.76148163,0.00023129,2]
[408789853,1774273846628,-2050.82478576,0.00023273,2]
[408789854,1774273846638,-500.0,0.00023287,4]
[408789855,1774273846647,-500.0,0.00023287,4]
[408789856,1774273846658,-452934.07323557,0.00023363,2]
[408789857,1774273846669,-1040.7,0.00023363,2]
[408789858,1774273846681,-1047.76194729,0.00023363,2]
[408789859,1774273846775,-308.5,0.00023363,2]
[408789860,1774274404263,164.0,2e-05,2]
[408789862,1774274424375,-164.0,2.1e-05,2]
[408789863,1774274424407,-164.0,2.1e-05,2]
[408789864,1774274424435,-164.0,2.2e-05,2]